bitfinex/quotes_ETHUSD_20250626
["timestamp","ask_amount","ask_price","bid_price","bid_amount"]
[1750907864985,0.1992,2500.6,2500.1,4.19897935]
[1750907865180,0.12492403,2500.5,2500.0,3.99985501]
[1750907865415,11.75224316,2500.7,2500.1,3.99983563]
[1750907865591,1.68330376,2500.6,2500.1,3.99983563]
[1750907865793,1.68330376,2500.6,2499.7,0.9146]
[1750907865794,1.55837748,2500.6,2500.2,3.99961313]
[1750907866814,11.75224316,2500.7,2500.0,3.99998179]
[1750907867005,9.6259,2500.7,2500.0,3.99998179]
[1750907867210,0.0319,2500.7,2500.4,3.9992617]
[1750907867518,0.0319,2501.0,2500.5,3.99910671]
[1750907867727,0.12490867,2500.9,2500.5,3.99910671]
[1750907867939,0.0319,2501.0,2500.2,0.9003]
[1750907868303,0.0319,2501.0,2500.6,3.99889252]
[1750907868707,0.15679541,2501.0,2500.4,3.99922791]
[1750907869042,0.0319,2501.0,2500.4,3.99922791]
[1750907869400,0.1249017,2500.9,2500.4,3.99922791]
[1750907869639,0.0319,2501.0,2500.5,3.99919679]
[1750907870947,0.0319,2501.0,2499.8,0.9827]
[1750907871113,0.12490135,2500.9,2500.4,3.99921152]
[1750907871312,1.40496458,2501.0,2500.4,3.99921152]
[1750907871517,0.12490507,2500.9,2500.5,3.99919304]
[1750907871716,1.40496458,2501.0,2500.5,3.99919304]
[1750907871918,0.1249026,2500.9,2500.5,3.99919304]
[1750907872114,0.12490428,2500.8,2500.5,3.99919304]
[1750907872317,1.20798672,2500.9,2500.4,3.99929795]
[1750907872518,0.12490641,2500.8,2500.4,3.99929795]
[1750907872703,0.0319,2501.0,2500.4,3.99929795]
[1750907872902,0.12491012,2500.9,2500.4,3.99929795]
[1750907873220,0.12491012,2500.8,2500.4,3.99929795]
[1750907873416,0.0319,2501.0,2500.4,3.99929795]
[1750907873632,0.12490712,2500.9,2500.4,3.99929795]
[1750907873923,0.12490712,2500.8,2500.4,3.99929795]
[1750907874130,0.4050029,2501.0,2500.4,3.99929795]
[1750907874338,0.12490896,2500.9,2500.4,3.99929795]
[1750907874532,0.12490896,2500.8,2500.4,3.99929795]
[1750907874728,0.4050029,2501.0,2500.3,3.99941523]
[1750907874934,0.12490906,2500.9,2500.4,3.99934898]
[1750907875237,0.32410906,2500.8,2500.4,3.99934898]
[1750907875440,0.1992,2500.8,2500.4,3.99934898]
[1750907876139,0.1992,2500.8,2500.5,3.99918546]
[1750907876341,0.12490124,2500.9,2500.5,0.81979036]
[1750907876637,0.0319,2501.0,2500.4,3.99920681]
[1750907876940,0.1992,2500.8,2500.3,4.1987021]
[1750907877114,0.32410834,2500.8,2500.3,0.1992]
[1750907877316,0.33217217,2501.0,2499.7,4.00035845]
[1750907877317,0.1992,2500.3,2499.9,0.2]
[1750907877515,0.1992,2500.5,2500.0,4.1992]
[1750907877747,0.1992,2500.5,2500.1,3.99984]
[1750907878050,0.1992,2500.5,2500.0,0.1992]
[1750907878607,0.0335,2500.7,2500.4,4.1984071]
[1750907879006,0.0335,2500.7,2500.5,3.9991839]
[1750907879210,0.1992,2500.8,2500.6,3.99904023]
[1750907879617,2.2275,2501.0,2500.8,3.99861963]
[1750907879618,0.0335,2501.0,2500.8,3.99861963]
[1750907880306,0.0335,2501.0,2500.7,4.19802377]
[1750907880711,0.15839563,2501.0,2500.2,0.9012]
[1750907880942,0.1992,2500.7,2500.3,3.99941682]
[1750907882110,0.1992,2500.7,2500.3,3.99952005]
[1750907882310,0.32411417,2500.9,2500.4,4.1985601]
[1750907882508,0.12491417,2500.8,2500.4,4.1985601]
[1750907882750,0.12491417,2500.8,2499.9,4.94882173]
[1750907882751,0.0335,2500.6,2499.9,4.00004467]
[1750907882951,0.1992,2500.4,2499.9,0.2]
[1750907883153,0.15844178,2500.3,2499.6,0.2]
[1750907883354,0.1992,2500.1,2499.7,4.00037816]
[1750907883548,0.1992,2500.1,2499.8,4.00030492]
[1750907883850,0.1992,2500.1,2499.7,4.00048005]
[1750907884463,0.1992,2500.1,2499.6,0.2]
[1750907884635,0.1992,2500.1,2499.9,4.00004267]
[1750907884961,0.1992,2500.1,2499.8,4.0002528]
[1750907885130,0.1992,2500.1,2499.9,4.00011961]
[1750907885529,0.1992,2500.1,2500.0,4.0]
[1750907885825,2.1995,2500.3,2500.0,3.9998875]
[1750907885826,0.0335,2500.3,2500.0,3.9998875]
[1750907886026,10.2327,2500.3,2500.0,3.9998875]
[1750907886955,10.2327,2500.3,2499.9,4.20000226]
[1750907887342,0.12493478,2500.2,2500.0,3.99998985]
[1750907887545,10.2327,2500.3,2500.0,3.99998985]
[1750907888552,10.2327,2500.3,2500.1,3.99977003]
[1750907889818,0.1992,2500.3,2500.1,3.99977003]
[1750907890023,0.0335,2500.8,2500.1,1.327177]
[1750907890222,0.1992,2500.8,2500.5,4.19834556]
[1750907890426,0.1992,2500.8,2500.6,3.99902247]
[1750907890647,0.12490513,2500.7,2500.5,0.1992]
[1750907890849,0.1992,2500.8,2500.5,0.1992]
[1750907891045,0.1992,2500.8,2500.6,3.99892523]
[1750907892633,0.1992,2500.8,2500.5,0.1992]
[1750907892973,0.1992,2500.8,2500.6,3.99904023]
[1750907893844,0.1992,2500.8,2500.5,4.19833681]
[1750907895255,0.1992,2500.8,2500.6,3.99903489]
[1750907895461,0.12490262,2500.7,2500.6,3.99903489]
[1750907895965,0.1992,2500.8,2500.6,3.99903489]
[1750907896676,0.1992,2500.8,2500.5,4.19835299]
[1750907896839,0.12490613,2500.7,2500.5,4.19835299]
[1750907897040,0.1992,2500.8,2500.5,4.19835299]
[1750907897255,0.12490555,2500.7,2500.5,0.1992]
[1750907897454,0.1992,2500.8,2500.3,4.19861717]
[1750907897763,0.12491145,2500.7,2500.5,3.99908894]
[1750907897965,0.1992,2500.9,2500.5,3.99908894]
[1750907898145,0.12490688,2500.8,2500.4,4.19849699]
[1750907898349,0.12490688,2500.7,2500.5,3.99918027]
[1750907898673,0.1992,2500.9,2500.5,3.99918027]
[1750907898870,0.12490507,2500.8,2500.5,3.99918027]
[1750907899041,0.12490507,2500.7,2500.5,3.99918027]
[1750907899248,0.1992,2500.9,2500.5,3.99918027]
[1750907899570,0.12490663,2500.8,2500.5,3.99918027]
[1750907899746,0.12490663,2500.7,2500.4,4.19851535]
[1750907899951,0.1992,2500.9,2500.4,4.19851535]
[1750907900151,0.12490904,2500.8,2500.4,4.19851535]
[1750907900360,0.0343,2500.6,2500.4,0.1992]
[1750907900560,0.1992,2500.7,2500.5,3.99905538]
[1750907900781,0.1992,2500.9,2500.7,3.99884647]
[1750907901864,0.12489996,2500.8,2500.6,3.99902287]
[1750907902067,0.1992,2500.9,2500.5,3.99915611]
[1750907902270,0.12490286,2500.8,2500.6,3.99903339]
[1750907902577,0.1992,2500.9,2500.6,3.99903339]
[1750907902741,0.12490021,2500.8,2500.6,3.99903339]
[1750907902945,0.1992,2500.9,2500.5,3.99913541]
[1750907903143,0.12490121,2500.8,2500.5,3.99913541]
[1750907903481,0.1992,2500.9,2500.6,3.99902433]
[1750907903682,0.12490156,2500.8,2500.6,3.99902433]
[1750907903855,0.1992,2500.9,2500.7,3.99876491]
[1750907904189,2.166,2501.2,2500.9,3.99854689]
[1750907904190,0.1992,2501.2,2500.9,3.99854689]
[1750907904393,0.12488598,2501.1,2500.8,3.99867799]
[1750907904538,0.12488598,2501.0,2500.8,3.99867799]
[1750907904738,0.0343,2501.1,2500.9,3.99855718]
[1750907904944,0.0343,2501.1,2500.8,3.99867745]
[1750907905282,0.0343,2501.1,2500.9,3.9985383]
[1750907905663,0.0343,2501.1,2501.0,3.99840063]
[1750907905875,0.95578671,2501.7,2501.4,3.99771742]
[1750907906103,0.12485969,2501.6,2501.3,3.99781847]
[1750907906275,0.0343,2501.8,2501.3,3.99781855]
[1750907906473,0.1248642,2501.7,2501.0,0.39984006]
[1750907906672,0.12486714,2501.6,2501.1,3.99824077]
[1750907906879,0.0343,2501.8,2501.1,3.99824077]
[1750907907065,0.12486663,2501.7,2501.1,3.99824077]
[1750907907370,0.0343,2501.8,2501.2,3.99807302]
[1750907907570,0.12486504,2501.7,2501.2,3.99807302]
[1750907907786,0.55,2501.5,2501.0,3.99827965]
[1750907907967,0.0343,2501.4,2500.9,3.99848597]
[1750907908359,0.37910845,2501.4,2500.9,3.99848597]
[1750907908689,0.37910845,2501.4,2500.7,3.99879507]
[1750907908690,0.12487845,2501.3,2500.7,3.99875584]
[1750907908875,0.12487845,2501.2,2500.6,3.9989995]
[1750907909081,0.12487845,2501.3,2500.8,3.99861811]
[1750907909277,10.25423,2501.4,2500.8,3.99861811]
[1750907909594,0.12488426,2501.3,2500.9,3.99852713]
[1750907909786,0.1248854,2501.3,2501.0,3.9983463]
[1750907910183,0.12488099,2501.3,2501.0,3.9983463]
[1750907910384,10.0343,2501.4,2501.0,3.9983463]
[1750907910582,10.0,2501.4,2501.0,4.9350463]
[1750907910893,0.40174396,2502.4,2501.0,5.4285235]
[1750907911088,2.165,2502.2,2501.7,3.99715679]
[1750907911288,0.12486257,2502.1,2501.2,3.99808092]
[1750907911500,0.12486257,2502.0,2501.7,3.99716352]
[1750907911797,0.12486257,2502.1,2501.8,3.997062]
[1750907912007,0.12486257,2502.0,2501.8,3.997062]
[1750907912498,0.35726639,2502.1,2501.8,3.997062]
[1750907912884,0.23241626,2502.1,2501.9,3.99690537]
[1750907913069,2.165,2502.2,2502.0,3.99676191]
[1750907913277,2.165,2502.2,2501.9,3.99689975]
[1750907913668,2.165,2502.2,2502.1,3.99664282]
[1750907914168,10.53969332,2502.9,2502.1,3.99664282]
[1750907914169,0.0343,2504.5,2502.4,3.99616368]
[1750907914375,0.1247599,2504.4,2503.3,0.9414]
[1750907914602,10.0343,2504.3,2503.3,7.265]
[1750907914904,0.1247599,2504.2,2503.5,3.99438972]
[1750907915105,2.2960599,2504.3,2503.6,3.99423026]
[1750907915278,1.40833522,2504.2,2503.3,3.99471247]
[1750907915472,1.28357532,2504.2,2503.3,3.99460637]
[1750907915672,1.28357532,2504.2,2502.9,0.9414]
[1750907915673,1.28357532,2504.2,2503.1,7.264]
[1750907915870,0.1992,2504.0,2503.5,0.1992]
[1750907916202,0.1992,2504.0,2503.9,3.99376971]
[1750907916395,0.1992,2504.0,2503.8,3.99389847]
[1750907916705,0.1992,2504.0,2503.7,3.99408874]
[1750907916869,2.1713,2504.3,2503.9,0.1992]
[1750907916870,0.1992,2504.3,2503.9,0.1992]
[1750907917075,0.1992,2504.6,2503.9,0.1992]
[1750907917275,0.1992,2504.6,2504.2,3.99326292]
[1750907918103,0.1992,2504.6,2504.1,4.19263688]
[1750907918270,0.1992,2504.6,2504.2,3.99329127]
[1750907918471,0.1992,2504.6,2504.1,4.19263688]
[1750907918472,0.0343,2504.7,2503.6,3.99411687]
[1750907918677,0.1992,2504.2,2503.8,4.19297587]
[1750907920009,0.1992,2504.2,2503.9,3.99375407]
[1750907922611,0.1992,2504.2,2503.8,4.19308189]
[1750907922789,0.55,2504.6,2503.8,3.9937965]
[1750907922992,0.1992,2504.2,2503.9,3.99363184]
[1750907923192,0.1992,2504.2,2503.8,3.99392422]
[1750907924516,0.1992,2504.2,2503.7,11.44423305]
[1750907924715,0.1992,2504.2,2503.8,3.99389036]
[1750907924923,0.1992,2504.2,2503.9,3.99372939]
[1750907925422,0.1992,2504.2,2503.8,3.99388487]
[1750907926088,11.30529933,2504.7,2503.8,0.93493837]
[1750907926286,0.1992,2504.6,2504.1,1.1017]
[1750907926496,0.1992,2504.8,2504.3,0.1992]
[1750907926781,0.1992,2504.8,2504.2,7.247]
[1750907926782,0.0343,2505.0,2504.5,3.9926733]
[1750907926985,0.1992,2505.1,2504.6,4.19185216]
[1750907927202,0.1992,2505.1,2504.7,3.99249411]
[1750907927409,0.1992,2505.1,2504.8,3.99231213]
[1750907928612,0.1992,2505.1,2504.9,3.99215093]
[1750907928811,0.0343,2505.3,2505.0,3.99200283]
[1750907929019,0.1992,2505.4,2505.0,4.19120283]
[1750907929482,0.1992,2505.4,2505.0,0.1992]
[1750907929878,0.1992,2505.4,2505.0,4.19119789]
[1750907930111,0.1992,2505.4,2505.0,0.1992]
[1750907930409,0.0316,2505.6,2505.3,0.1992]
[1750907930597,0.1992,2505.7,2505.3,11.43272214]
[1750907930911,0.1992,2505.7,2505.3,0.1992]
[1750907931082,0.1992,2505.7,2505.3,7.4412]
[1750907931678,0.0316,2506.0,2505.3,7.242]
[1750907932083,0.1992,2505.8,2505.3,11.43270682]
[1750907932777,0.0316,2506.0,2505.3,7.239]
[1750907932978,0.0316,2505.5,2505.1,0.1992]
[1750907933211,0.1992,2505.1,2504.7,7.238]
[1750907933393,0.0316,2505.5,2504.9,3.99206723]
[1750907933592,0.1992,2505.3,2504.9,4.19126723]
[1750907934616,0.1992,2505.3,2504.9,0.1992]
[1750907935615,0.1992,2505.3,2504.9,4.19132199]
[1750907937431,0.1992,2505.3,2504.9,0.1992]
[1750907937596,0.5816,2505.2,2504.1,0.9417]
[1750907937795,0.1992,2504.9,2504.5,4.1920035]
[1750907937991,0.1992,2504.9,2504.5,0.1992]
[1750907938213,0.1992,2504.9,2504.5,7.4312]
[1750907938413,0.1992,2504.9,2504.5,11.42397133]
[1750907938614,0.1992,2504.9,2504.5,7.4312]
[1750907938816,0.1992,2504.9,2504.7,3.99247809]
[1750907939129,0.0316,2505.2,2504.7,3.99247809]
[1750907939323,0.1992,2505.0,2504.7,3.99247809]
[1750907939693,0.1992,2505.0,2504.8,3.99226082]
[1750907940124,0.1992,2505.0,2504.9,3.99217533]
[1750907940338,0.2308,2505.2,2504.9,3.99217533]
[1750907940630,0.1992,2505.2,2505.0,7.23]
[1750907940837,0.1992,2505.4,2505.0,3.99195434]
[1750907940994,0.1992,2505.4,2505.0,11.22095434]
[1750907941399,0.1992,2505.4,2505.1,3.99184975]
[1750907941928,0.1992,2505.4,2505.0,11.22095441]
[1750907942136,0.0316,2505.5,2504.8,3.9922274]
[1750907942320,0.1992,2505.2,2504.9,7.228]
[1750907942951,0.1992,2505.2,2504.8,0.1992]
[1750907943231,0.1992,2505.2,2504.2,3.99327763]
[1750907943232,10.55,2504.8,2503.8,3.99381651]
[1750907943402,10.55,2504.8,2503.7,3.99403818]
[1750907943403,10.55,2504.6,2503.7,3.99403818]
[1750907943607,0.55,2504.4,2503.7,3.99403818]
[1750907943920,0.94597816,2504.3,2503.7,3.99403818]
[1750907944509,0.94597816,2504.3,2503.8,3.99392081]
[1750907945537,0.94597816,2504.2,2503.7,3.99403341]
[1750907945715,0.94597816,2504.3,2503.7,3.99403341]
[1750907946030,0.94597816,2504.2,2503.7,3.99403341]
[1750907946232,0.94597816,2504.3,2503.7,3.99403341]
[1750907946437,0.94597816,2504.2,2503.7,3.99403341]
[1750907946618,0.94597816,2504.3,2503.7,3.99403341]
[1750907946819,0.0316,2504.1,2503.6,3.99414655]
[1750907947230,0.0316,2504.1,2503.7,3.99395801]
[1750907947732,0.97757816,2504.5,2504.0,3.99351024]
[1750907947914,0.94597816,2504.5,2504.0,7.223]
[1750907948110,0.94597816,2504.7,2504.3,3.99300286]
[1750907948327,0.94597816,2504.7,2504.4,3.9929405]
[1750907948725,0.94597816,2504.7,2504.3,3.99309429]
[1750907948927,1.25523598,2504.7,2504.3,3.99309429]
[1750907949125,1.25523598,2504.7,2504.2,3.99323885]
[1750907949323,1.25523598,2504.7,2504.0,7.223]
[1750907949718,1.25523598,2504.7,2503.9,11.21473452]
[1750907949925,1.25523598,2504.7,2504.0,3.99361022]
[1750907950130,0.0316,2504.5,2504.0,3.99361022]
[1750907950428,0.0316,2504.5,2504.2,3.99329122]
[1750907950736,0.0316,2504.5,2504.1,3.99340618]
[1750907952642,0.0316,2504.5,2503.9,3.99375939]
[1750907952934,0.97757816,2504.5,2503.6,3.99421496]
[1750907953122,0.1992,2504.2,2503.7,0.1992]
[1750907953437,0.0316,2504.1,2503.7,0.1992]
[1750907953613,0.0316,2504.1,2503.5,3.99435376]
[1750907953810,0.1992,2504.0,2503.6,3.99422854]
[1750907955434,0.1992,2503.8,2503.4,3.99446997]
[1750907955636,0.1992,2503.8,2503.5,3.99440537]
[1750907956031,0.1992,2503.8,2503.5,3.94440537]
[1750907956232,0.1992,2503.8,2503.3,5.18501795]
[1750907956233,0.1992,2503.8,2503.6,3.99424798]
[1750907956408,0.1992,2503.8,2503.5,3.99434111]
[1750907956611,0.1992,2503.8,2503.4,3.99455999]
[1750907957132,0.1992,2503.8,2503.5,3.99440782]
[1750907958548,0.0316,2504.1,2503.3,0.9911]
[1750907958752,0.1992,2503.9,2503.5,4.19347038]
[1750907959534,0.1992,2503.9,2503.0,4.93718353]
[1750907959734,0.1992,2503.4,2502.9,3.99520716]
[1750907960044,0.0342,2503.4,2502.9,3.99530819]
[1750907960357,0.1992,2503.2,2502.9,3.99530819]
[1750907960557,0.1992,2503.2,2502.8,4.1946372]
[1750907960757,0.1992,2503.2,2502.9,3.99536008]
[1750907961646,0.0342,2502.8,2502.3,3.99621592]
[1750907961848,0.1992,2502.6,2502.2,0.1992]
[1750907962226,0.1992,2502.6,2502.2,4.19562997]
[1750907962544,0.0342,2502.8,2501.8,12.15217651]
[1750907962745,0.0342,2502.8,2502.0,0.1992]
[1750907962746,0.0342,2502.3,2502.0,0.1992]
[1750907962953,0.0342,2502.3,2501.7,3.99722604]
[1750907963149,0.1992,2502.1,2501.8,3.99708308]
[1750907963350,0.0342,2502.3,2501.8,3.99708308]
[1750907963526,2.3484,2502.3,2501.9,0.1992]
[1750907963729,0.23484,2502.2,2501.9,0.1492]
[1750907964086,0.1992,2502.1,2501.9,3.99685211]
[1750907964261,0.1992,2502.2,2501.9,3.99685211]
[1750907964458,0.1992,2502.2,2501.8,4.19630072]
[1750907964758,0.1992,2502.7,2502.1,0.1992]
[1750907964938,0.1992,2502.7,2502.4,3.99614077]
[1750907965126,0.1992,2502.7,2502.1,4.19583181]
[1750907965329,0.1992,2502.5,2502.1,4.19583181]
[1750907965532,0.1992,2502.5,2502.3,3.99629465]
[1750907965728,0.1992,2502.5,2502.3,3.99624511]
[1750907966464,0.1992,2502.5,2502.4,3.99616368]
[1750907966668,2.1502,2502.9,2502.5,3.99591429]
[1750907966856,2.1502,2502.9,2502.4,3.99616368]
[1750907966857,2.1502,2502.9,2502.6,3.99577343]
[1750907967058,2.3494,2502.9,2502.6,3.99577343]
[1750907969467,0.2334,2502.9,2502.6,3.99577343]
[1750907971254,2.1502,2503.2,2502.6,1.80810682]
[1750907971450,0.0342,2503.2,2502.9,3.99521699]
[1750907971736,10.53068889,2503.8,2502.7,3.99553025]
[1750907971737,0.0342,2504.4,2503.1,0.989]
[1750907971942,0.0342,2504.4,2503.7,3.9939404]
[1750907972144,0.0342,2504.4,2503.5,7.205]
[1750907972374,0.0342,2504.4,2503.6,3.99413309]
[1750907972553,0.0342,2504.4,2503.7,3.99407878]
[1750907972868,0.0342,2504.4,2503.5,11.19840005]
[1750907972869,2.10316333,2504.4,2503.9,3.99367253]
[1750907973069,2.10316333,2504.4,2504.0,3.99358021]
[1750907973269,0.0342,2504.4,2503.6,0.989]
[1750907973470,0.0342,2504.4,2503.9,3.99368214]
[1750907974572,0.0342,2504.4,2503.8,3.9938666]
[1750907975084,0.0342,2504.4,2503.9,3.99372488]
[1750907976194,0.0342,2504.4,2503.6,0.989]
[1750907976360,0.0342,2504.4,2503.7,3.99394364]
[1750907976581,0.0342,2504.4,2503.8,3.99391576]
[1750907977573,0.0342,2504.4,2503.6,3.99423543]
[1750907977574,0.55,2504.3,2503.4,7.199]
[1750907977740,0.55,2504.3,2503.3,3.99459149]
[1750907977741,0.0342,2504.0,2503.3,3.99459149]
[1750907977942,0.55,2503.9,2503.3,3.99459149]
[1750907978143,0.55,2503.9,2502.9,3.99531231]
[1750907978386,0.55,2503.9,2503.1,3.99494213]
[1750907979258,0.55,2503.9,2502.9,3.99531231]
[1750907979259,0.0342,2503.6,2502.9,3.99526293]
[1750907979468,0.55,2503.5,2502.9,3.99526293]
[1750907979671,0.55,2503.5,2502.8,3.99546087]
[1750907979672,0.26822,2503.4,2502.8,3.99546087]
[1750907981175,0.1992,2503.1,2502.8,3.99546087]
[1750907983108,0.0342,2503.0,2502.4,3.99616253]
[1750907983309,0.1992,2502.8,2502.4,4.19536253]
[1750907983601,0.1992,2502.8,2502.0,6.09471399]
[1750907983602,2.098,2502.9,2502.5,3.99587094]
[1750907983808,0.1992,2502.5,2502.4,3.99609783]
[1750907985674,0.1992,2502.5,2502.3,3.99625773]
[1750907985871,0.1992,2502.5,2502.4,3.99616368]
[1750907986473,0.1992,2502.5,2502.3,3.9962578]
[1750907986870,0.1992,2502.5,2502.4,3.99616368]
[1750907989815,0.1992,2502.5,2502.3,3.99632316]
[1750907990309,0.1992,2502.5,2502.4,3.99616368]
[1750907990907,0.1992,2502.5,2502.3,3.99625351]
[1750907991104,0.1992,2502.5,2502.4,3.99616368]
[1750907992100,0.1992,2502.7,2502.4,3.99602129]
[1750907992306,0.1992,2502.7,2502.2,0.1992]
[1750907992508,0.1992,2502.7,2502.5,3.99588087]
[1750907993810,0.1992,2502.7,2502.2,4.19566813]
[1750907993811,1.450242,2502.7,2502.2,4.19566813]
[1750907993980,1.450242,2502.7,2502.3,3.99632338]
[1750907994376,0.035,2502.6,2501.3,0.938]
[1750907994582,0.1992,2502.4,2502.1,3.99662164]
[1750907996295,0.1992,2502.4,2502.1,3.99653899]
[1750907997417,0.1992,2502.4,2501.9,0.1992]
[1750907997624,0.1992,2502.5,2502.1,0.1992]
[1750907997927,0.1992,2502.8,2502.5,3.99591033]
[1750907998224,10.43252,2502.8,2502.5,3.99591033]
[1750907999614,10.1992,2502.8,2502.5,3.99591033]
[1750907999922,0.035,2503.3,2502.6,3.99583974]
[1750908000127,0.1992,2503.2,2502.8,3.99548212]
[1750908001135,0.1992,2503.2,2502.7,0.1992]
[1750908001289,0.2342,2502.8,2502.3,7.3742]
[1750908001492,0.2342,2502.8,2502.2,3.99638175]
[1750908001693,0.1992,2502.5,2502.2,3.99638175]
[1750908003258,0.1992,2502.5,2502.1,3.99658298]
[1750908003554,0.55,2502.7,2502.0,3.99675707]
[1750908003720,0.1992,2502.3,2502.0,3.99675707]
[1750908003916,0.1992,2502.3,2501.9,4.19611414]
[1750908004173,0.035,2502.2,2501.9,3.99689813]
[1750908004838,0.035,2502.2,2501.8,0.1992]
[1750908005013,0.1992,2502.1,2501.7,3.99715804]
[1750908005214,0.1992,2502.1,2501.6,3.9973637]
[1750908005625,0.1992,2502.1,2501.5,0.1992]
[1750908005813,0.1992,2502.1,2501.5,4.19674608]
[1750908006257,0.035,2502.2,2501.4,3.99773729]
[1750908006446,0.1992,2501.8,2501.4,0.1992]
[1750908006817,0.1992,2501.8,2501.6,3.9973402]
[1750908007926,0.1992,2501.8,2501.5,3.99756609]
[1750908008544,0.1992,2501.8,2501.6,3.99744163]
[1750908009056,0.2484,2502.2,2501.6,3.99737534]
[1750908009257,0.1992,2501.9,2501.6,3.99732274]
[1750908010357,0.55,2502.1,2501.5,3.9975536]
[1750908010531,1.07984,2502.0,2501.6,3.99738353]
[1750908013958,1.07984,2502.0,2501.5,3.99753627]
[1750908014472,1.07984,2502.0,2501.6,3.99742616]
[1750908014630,1.07984,2502.0,2501.5,3.9975355]
[1750908014836,0.585,2501.9,2501.2,3.99796655]
[1750908015419,0.035,2501.8,2501.2,3.99796655]
[1750908015918,0.55,2501.7,2501.0,11.15827892]
[1750908016136,2.629,2501.7,2501.0,3.99827892]
[1750908016322,0.2664,2501.6,2501.0,3.99827892]
[1750908016820,10.55,2501.7,2501.2,3.99806335]
[1750908019454,10.55,2501.7,2501.1,3.99817485]
[1750908019758,10.55,2501.7,2501.0,3.9983918]
[1750908020253,0.1992,2501.2,2501.0,3.9983918]
[1750908020754,0.1992,2501.2,2500.9,3.99851464]
[1750908021459,0.0359,2501.1,2500.3,0.9396]
[1750908021753,0.1992,2500.9,2500.6,3.99903731]
[1750908022355,0.1992,2500.9,2500.5,4.19833099]
[1750908022742,0.1992,2500.9,2500.7,3.99887866]
[1750908023351,0.1992,2500.7,2500.5,3.99905146]
[1750908023752,0.1992,2500.7,2500.4,3.9993601]
[1750908023946,0.1992,2500.7,2500.5,3.99909641]
[1750908024337,0.1992,2500.7,2500.6,3.99904023]
[1750908024524,0.55,2501.3,2500.8,3.9987204]
[1750908024525,0.1992,2500.9,2500.8,3.9987204]
[1750908024725,0.0359,2501.3,2500.9,3.99856051]
[1750908024925,0.1992,2501.3,2501.2,3.99806446]
[1750908027578,0.1992,2501.3,2501.0,3.99837298]
[1750908027775,0.1992,2501.3,2500.8,4.19791687]
[1750908027776,0.1992,2501.3,2501.2,3.99808092]
[1750908028072,2.3141,2501.5,2501.2,3.99794492]
[1750908028862,2.3141,2501.5,2500.9,3.99844264]
[1750908028863,10.78141,2501.4,2500.9,3.99844264]
[1750908029058,0.1992,2501.1,2500.9,3.99844264]
[1750908029673,0.1992,2501.1,2500.8,3.99866018]
[1750908029849,0.1992,2501.1,2500.6,5.11801443]
[1750908029850,0.0359,2501.0,2500.6,3.99891419]
[1750908030043,0.1992,2500.9,2500.6,3.99891419]
[1750908030744,0.1992,2500.9,2500.6,3.99903595]
[1750908031143,0.1992,2500.9,2500.7,3.99887197]
[1750908032782,0.1992,2500.9,2500.6,3.99897919]
[1750908032985,0.1992,2500.9,2500.6,3.99898609]
[1750908033399,0.1992,2500.9,2500.4,0.1992]
[1750908033566,10.55,2500.8,2499.9,3.0456]
[1750908033767,0.1992,2500.4,2500.1,3.99972382]
[1750908034295,0.1992,2500.4,2500.1,11.13872382]
[1750908035189,0.0359,2500.7,2500.1,7.139]
[1750908035390,0.1992,2500.5,2500.4,3.99930994]
[1750908035687,0.1992,2500.5,2500.3,3.99946752]
[1750908035891,0.1992,2500.5,2500.4,3.9993601]
[1750908036084,0.1992,2500.8,2500.4,3.9993601]
[1750908036272,0.1992,2500.8,2500.5,3.99907721]
[1750908037088,2.08,2500.9,2500.4,3.99934565]
[1750908037267,0.1992,2500.5,2500.4,3.9993601]
[1750908037463,0.1992,2500.7,2500.6,3.99901612]
[1750908038267,2.08,2500.9,2500.7,3.99873975]
[1750908038462,0.1992,2500.8,2500.7,3.99873975]
[1750908038686,0.1992,2501.0,2500.8,3.99857399]
[1750908039098,0.0359,2501.3,2500.9,3.99856051]
[1750908039261,4.30258091,2502.1,2501.1,3.99824077]
[1750908039262,0.1992,2501.2,2501.1,3.99824077]
[1750908039467,0.0359,2502.4,2501.2,0.8948]
[1750908039869,0.0359,2502.4,2502.0,3.99667225]
[1750908040188,0.0359,2502.4,2501.7,3.99727856]
[1750908040367,0.0359,2502.4,2501.4,8.0278]
[1750908040780,0.55,2502.3,2501.6,3.99731854]
[1750908041072,0.0359,2502.4,2501.6,3.99731854]
[1750908041273,0.55,2502.3,2501.6,3.99731854]
[1750908041478,10.55,2502.1,2501.4,3.99775447]
[1750908041684,0.55,2501.9,2501.4,3.99775447]
[1750908042506,0.55,2502.0,2501.4,3.99775447]
[1750908043888,0.55,2502.0,2501.3,11.12890043]
[1750908044371,0.0359,2501.9,2501.3,11.12890043]
[1750908044577,1.09449,2501.9,2501.4,3.99769451]
[1750908045308,1.09449,2501.9,2501.5,3.99750238]
[1750908049177,10.0359,2501.9,2501.5,3.99750238]
[1750908049379,0.1992,2501.8,2501.5,3.99750238]
[1750908050225,0.1992,2501.8,2501.4,3.99771387]
[1750908050574,0.1992,2501.8,2501.7,3.99728184]
[1750908050818,0.0346,2502.7,2501.5,0.9155]
[1750908050988,0.8156,2502.7,2502.0,3.99678618]
[1750908051382,0.55,2502.6,2502.0,3.99678618]
[1750908051611,10.0,2502.5,2502.0,3.99678618]
[1750908052179,10.0,2502.5,2502.3,3.99629749]
[1750908052380,0.8156,2502.7,2502.3,3.99629749]
[1750908052381,0.0346,2502.7,2502.3,3.99629749]
[1750908053008,2.056,2502.8,2502.5,3.99594978]
[1750908054292,2.056,2502.8,2502.6,3.99583394]
[1750908054489,2.056,2502.8,2502.1,3.9965039]
[1750908054682,2.056,2502.8,2501.9,3.99682017]
[1750908054683,0.0346,2502.6,2501.8,3.9970156]
[1750908055105,0.55,2502.5,2501.8,3.9970156]
[1750908055511,0.55,2502.5,2501.9,3.99692442]
[1750908057085,0.55,2502.3,2501.7,3.99715725]
[1750908057513,0.55,2502.3,2501.4,0.9469]
[1750908057689,0.55,2502.1,2501.5,3.99753495]
[1750908058106,0.55,2502.1,2501.6,3.99739885]
[1750908058483,0.81406,2502.1,2501.5,3.99754173]
[1750908059116,0.81406,2502.1,2501.6,3.9974155]
[1750908059613,10.81406,2502.1,2501.4,3.9977155]